[Event "44th Chess Olympiad Women 2022"]
[Site "Chennai"]
[Date "2022.07.30"]
[Round "2.17"]
[White "Roebers, Eline"]
[Black "Ouellet, Maili-Jade"]
[Result "1-0"]
[WhiteElo "2344"]
[BlackElo "2239"]
[Annotator "TA"]
[PlyCount "167"]
[EventDate "2022.??.??"]
[TimeControl "60"]

{[%evp 12,166,24,7,14,28,24,0,6,0,0,0,0,0,0,0,0,0,0,0,0,0,0,12,39,-43,-43,-67,
-60,-59,-50,-126,-141,-158,-152,-149,-153,-162,-135,-290,-302,-309,-72,-90,-81,
-79,-68,-54,-26,-53,-42,-38,-39,-32,-33,-41,-18,-48,-46,-48,-43,-104,-53,-76,
-73,-129,-88,-133,-88,-94,-105,-173,-178,-171,-180,-177,-193,-190,-89,-124,
-127,-150,-35,-77,-79,-155,-53,-68,0,-163,-104,-91,-94,-88,-100,-97,-66,-99,
-35,-16,0,-9,0,-8,-10,-28,0,-60,0,0,5,-67,-67,-93,-67,-67,-63,-67,0,-426,-416,
-400,-278,-390,-381,-372,-258,-337,-258,-258,-112,-168,-76,-400,-409,-479,-418,
-390,-221,-327,-118,-200,0,-54,69,34,341,0,425,0,497,0,471,429,29998,631,29999]
} 1. e4 {[%emt 0:00:03]} c5 {[%emt 0:00:04]} 2. Nf3 {[%emt 0:00:04]} d6 {
[%emt 0:00:04]} 3. d4 {[%emt 0:00:23]} cxd4 {[%emt 0:00:05]} 4. Nxd4 {[%emt 0:
00:00]} Nf6 {[%emt 0:00:06]} 5. Nc3 {[%emt 0:00:07]} a6 {[%emt 0:00:05]} 6. Bg5
{[%emt 0:00:34]} Nbd7 {[%emt 0:00:08]} 7. Bc4 {[%emt 0:00:56] 7.Qe2 is the
modern continuation.} Qb6 {[%emt 0:00:15] B94: Sicilian Najdorf: 6 Bg5 Nbd7.}
8. Bb3 {[%emt 0:00:37]} e6 {[%emt 0:00:12]} 9. Bxf6 {[%emt 0:00:34]} Nxf6 {
[%emt 0:00:10] The position is equal.} 10. Qd2 {[%emt 0:00:04] 10.f4 is
vanishing.} Nd7 {[%emt 0:00:14]} 11. O-O-O {[%emt 0:00:53]} Nc5 {[%emt 0:00:38]
} 12. f4 {[%emt 0:01:33]} Bd7 {[%emt 0:01:17]} 13. Kb1 {[%emt 0:01:00]} Be7 {
[%emt 0:02:39]} 14. Rhf1 {[%emt 0:05:32]} O-O-O {[%emt 0:03:08]} 15. Nf5 {
[%emt 0:02:40]} Bf8 {[%emt 0:13:24]} (15... exf5 $2 16. Nd5 Qb5 17. c4 (17.
Nxe7+ Kb8 $16) 17... Nxe4 18. Nxe7+ (18. cxb5 Nxd2+ 19. Rxd2 Bf8 $16) 18... Kb8
19. cxb5 $18) 16. Ne3 {[%emt 0:04:05]} Bc6 {[%emt 0:10:00]} 17. f5 {[%emt 0:00:
00] [#]} Qc7 $146 {[%emt 0:05:35]} ({Predecessor:} 17... Kb8 18. Qe1 Nxb3 19.
axb3 Be7 20. fxe6 fxe6 21. Ned5 exd5 22. exd5 Bf6 23. dxc6 Rhe8 {1-0 (51) Van
Foreest,L (2531)-Donchenko,A (2654) Karlsruhe 2020}) 18. Qe2 {[%emt 0:19:37]} (
18. fxe6 $14 fxe6 19. Bd5 $1) 18... Kb8 $15 {[%emt 0:09:43]} 19. Qg4 {[%emt 0:
00:00][%cal Rf5e6]} h5 {[%emt 0:04:58]} 20. Qh3 {[%emt 0:08:45][%cal Rf5e6]}
Rh6 {[%emt 0:02:55]} 21. Rd4 {[%emt 0:06:28]} (21. Qg3 $15) 21... g5 $17 {
[%emt 0:08:18]} 22. e5 {[%emt 0:25:04]} d5 {[%emt 0:04:39]} (22... dxe5 23.
Rxd8+ Qxd8 24. fxe6 fxe6 25. Nc4 $15) 23. Qg3 {[%emt 0:02:50]} Nxb3 {[%emt 0:
00:00]} 24. axb3 {[%emt 0:02:49]} Bc5 {[%emt 0:00:26]} 25. Qxg5 $2 {[%emt 0:00:
00]} (25. Ne2 $17 {might work better.}) 25... Rhh8 $19 {[%emt 0:01:48]} (25...
Bxd4 $2 26. Qxh6 Bxe3 27. Qxe3 $19) 26. Qf4 {[%emt 0:04:34]} Qb6 $2 {[%emt 0:
00:00]} (26... f6 $19 27. Ncxd5 (27. exf6 $2 e5 $19) 27... exd5) 27. Rfd1 $17 {
[%emt 0:01:00]} Bxd4 {[%emt 0:00:27]} 28. Rxd4 {[%emt 0:00:49]} Rhg8 {[%emt 0:
00:00]} 29. g3 {[%emt 0:02:31]} Ka8 {[%emt 0:02:00]} 30. f6 {[%emt 0:01:47]}
Rg6 {[%emt 0:00:58]} 31. Ne2 {[%emt 0:00:38]} Bb5 {[%emt 0:01:08]} 32. Ng1 {
[%emt 0:00:20]} Rdg8 {[%emt 0:01:24][%cal Yg6g4]} 33. c3 {[%emt 0:00:25]} Bc6 {
[%emt 0:03:11]} 34. Kc2 {[%emt 0:00:37]} Rc8 {[%emt 0:00:33]} 35. Qh4 {[%emt 0:
00:00]} Bb5 {[%emt 0:01:19][%cal Yg6g4]} 36. Kd2 {[%emt 0:00:30]} (36. Kb1 $15)
36... Rh6 {[%emt 0:02:02]} (36... Qa5 $17 37. Kc2 Qa2) 37. Nf3 {[%emt 0:00:26]}
Qa5 {[%emt 0:00:50]} 38. Qf4 {[%emt 0:00:31]} (38. Kc2 $142) 38... Rhh8 $1 {
[%emt 0:00:34][%cal Yh6h8,Yh8g8,Yg8g4]} 39. Rb4 {[%emt 0:00:34]} Qa1 {[%emt 0:
02:05]} 40. Nd1 {[%emt 0:00:20]} Qb1 {[%emt 0:01:17]} 41. Ne1 {[%emt 0:00:00]
Against Bd3} (41. Qe3 $17) 41... Rhg8 $19 {[%emt 0:03:16]} 42. Qe3 {[%emt 0:05:
08]} Rg4 $36 {[%emt 0:01:55] Black is really pushing.} 43. Rf4 {[%emt 0:02:55]}
Rxf4 {[%emt 0:05:12]} 44. Qxf4 {[%emt 0:00:09]} Qg6 {[%emt 0:02:12]} (44... Rd8
$19 {[%cal Yb5c4] And now ...Bc4! would win.} 45. Qb4 Rg8) 45. Ne3 {[%emt 0:01:
11] Against Bc4} Rg8 {[%emt 0:01:24]} 46. N3c2 {[%emt 0:04:21]} a5 {[%emt 0:04:
25]} ({Better is} 46... Qh7 $17 {White must now prevent ...Rg4.} 47. Kc1 Qe4)
47. Na3 {[%emt 0:04:36]} Ba6 {[%emt 0:02:27]} 48. Nac2 {[%emt 0:00:38]} (48. b4
$142 axb4 49. cxb4) 48... Qg4 {[%emt 0:03:59]} ({Black should play} 48... h4
$17 {[%cal Rh4g3]} 49. Qxh4 Qf5) 49. Nd4 $15 {[%emt 0:01:22]} Qg6 {[%emt 0:03:
16]} (49... Kb8 $15) 50. Ndc2 $1 $19 {[%emt 0:00:00]} Kb8 {[%emt 0:00:25]} (
50... h4 $1 $19 {[%cal Rh4g3]} 51. Qxh4 Qf5) 51. b4 $17 {[%emt 0:01:19]} axb4 {
[%emt 0:01:55]} 52. Nxb4 {[%emt 0:00:09]} Bc4 {[%emt 0:01:10]} 53. Nbc2 {
[%emt 0:00:30]} Rc8 {[%emt 0:00:33]} 54. Qd4 {[%emt 0:00:44]} Qh6+ {[%emt 0:02:
03]} (54... Qg4 $17 55. Qxg4 hxg4) 55. Qe3 $15 {[%emt 0:00:56]} Qh7 {[%emt 0:
02:14]} 56. Nf3 $1 {[%emt 0:01:01]} Qf5 {[%emt 0:00:00]} 57. Na3 {[%emt 0:00:
38]} Ba6 {[%emt 0:00:27]} 58. Nc2 {[%emt 0:00:40]} Ka8 {[%emt 0:03:23]} 59. Na3
{[%emt 0:00:23] Active counter play!} (59. h4 $11) 59... Qg4 {[%emt 0:01:07]} (
59... Rd8 $15) 60. Nd4 $11 {[%emt 0:00:37]} b6 {[%emt 0:02:46]} 61. Nac2 {
[%emt 0:00:31]} ({White should try} 61. Nab5 $11) 61... Kb7 $15 {[%emt 0:03:30]
} 62. Nb4 {[%emt 0:00:31]} Bc4 {[%emt 0:00:14]} 63. b3 {[%emt 0:00:34]} Bf1 {
[%emt 0:00:08]} 64. Qf2 {[%emt 0:00:26]} Qh3 {[%emt 0:01:39]} (64... Ba6 $15
65. Nxa6 Kxa6 66. Qe2+ Qxe2+ 67. Nxe2 Rh8) 65. Nd3 $2 {[%emt 0:00:35]} (65. c4
$1 $11) 65... Bxd3 $19 {[%emt 0:00:00]} 66. Kxd3 {[%emt 0:00:04] Endgame
KQR-KQN} Qg4 {[%emt 0:01:09]} 67. Qe2 {[%emt 0:00:54] Inhibits Qe4+.} (67. Nb5
{was worth a try.} Qe4+ 68. Kd2 Qxe5 69. Qf4 Qxf4+ 70. gxf4) 67... Qg6+ {
[%emt 0:00:22]} 68. Kd2 {[%emt 0:00:00]} Qb1 {[%emt 0:01:31] Hoping for ...
Qb2+.} 69. Qd3 {[%emt 0:00:54]} Qa2+ {[%emt 0:00:44]} (69... Qb2+ $2 70. Qc2
Qa1 71. h4 $17) 70. Qc2 {[%emt 0:00:19]} Qa5 {[%emt 0:00:35]} (70... Qa1 $1 $19
{[%cal Yh5h4] is more deadly. aiming for ...h4!} 71. h4 Rg8) 71. Qd3 {[%emt 0:
00:11]} (71. Ne2 $17 {is a better defense.}) 71... Qc5 {[%emt 0:00:21]} (71...
Qa1 $1 $19 72. h4 Rh8) 72. Nb5 $2 {[%emt 0:01:04]} (72. h4 $17 {is tougher.})
72... Ra8 $1 {[%emt 0:00:00]} (72... Qf2+ 73. Qe2 Qxe2+ 74. Kxe2 $11) 73. Nd6+
{[%emt 0:00:06] [#]} Kc6 $1 {[%emt 0:00:53]} 74. Qd4 {[%emt 0:00:38] Prevents
Qf2+.} Ra2+ {[%emt 0:00:00]} (74... Qa3 $142 {Threatens to win with ...Qb2+.}
75. Qd3 Qa1) 75. Kd3 {[%emt 0:00:36]} (75. Ke3 {is the only way for White.} Qa3
76. Qa4+ Qxa4 77. bxa4) 75... Qa5 $2 {[%emt 0:01:02]} (75... Rxh2 76. Qa4+ b5
77. Qa8+ (77. Qa6+ Kd7 $18) 77... Kd7 78. Qe8+ Kc7 79. Qxf7+ Kb6 80. Qb7+ Ka5
81. Qa8+ Kb6 82. Qb7+ Ka5 83. b4+ Ka4 84. bxc5) (75... Qa3 $19 {and Black
stays clearly on top.} 76. Qa4+ Qxa4 77. bxa4 Rxh2) 76. Ke3 {[%emt 0:00:40]} (
76. b4 $17 Qa4 77. b5+ Kd7 78. Qxa4 Rxa4 79. c4 (79. Nxf7 Ra2 $15)) 76... Qa6
$2 {[%emt 0:00:29]} (76... Qa3 $19 {( -> ...Qc1+)} 77. Qa4+ Qxa4 78. bxa4 Rxh2
79. Nxf7 Rc2) 77. c4 {[%emt 0:00:21]} (77. Kf4 $1 $11) 77... Qa5 {[%emt 0:00:
28]} (77... Kd7 $1 $15 78. Nxf7 Qa3) 78. cxd5+ $14 {[%emt 0:00:36]} ({Don't go
for} 78. Nxf7 $2 Qe1+ 79. Kf4 Qc1+ 80. Qe3 Rf2+ 81. Kg5 Qxe3+ $19) 78... exd5
$2 {[%emt 0:00:15]} (78... Qxd5 $14 79. Qxd5+ Kxd5 80. Nxf7 Kc6) 79. Kf4 $2 {
[%emt 0:00:00] Really sharp!} (79. Nxf7 $18 Kd7 80. Kf4) 79... Qe1 $2 {[%emt 0:
00:37]} (79... Rd2 $11 80. Qa4+ Qxa4+ 81. bxa4 Rf2+ 82. Ke3 Rxf6 83. exf6 Kxd6)
80. Kg5 $2 {[%emt 0:00:36]} (80. Nxf7 $18 Qf2+ 81. Qxf2 Rxf2+ 82. Ke3) 80...
Qc1+ $2 {[%emt 0:00:53] [#]} (80... Ra8 $1 $11 {and Black is okay.}) 81. Kxh5
$2 {[%emt 0:00:22]} (81. Qf4 $1 $18 {[%cal Rf4c1]} Qxf4+ 82. gxf4) 81... Rxh2+
$2 {[%emt 0:00:17]} (81... Qc2 $11 {and Black stays safe.} 82. Kg5 Qg6+ 83. Kf4
Qh6+ 84. Kg4 Qg6+ 85. Kf4 Qh6+ 86. Kf3 Qh5+ 87. Kf4 Qh6+) 82. Kg4 $18 {[%emt 0:
00:03]} Qb1 {[%emt 0:00:43]} (82... Ra2 $18 83. Nxf7 Ra8) 83. Qa4+ {[%emt 0:00:
18]} (83. Qc3+ $142 Kd7 84. Qc8#) 83... Kc5 {[%emt 0:00:17]} 84. Nb7# {[%emt 0:
00:04] Weighted Error Value: White=0.19 (very precise) /Black=0.20 (precise)}
1-0

[Event "44th Chess Olympiad Women 2022"]
[Site "Chennai"]
[Date "2022.07.30"]
[Round "2.17"]
[White "Van Foreest, Machteld"]
[Black "Mills, Morgen"]
[Result "1-0"]
[WhiteElo "2299"]
[BlackElo "1993"]
[Annotator "TA"]
[PlyCount "51"]
[EventDate "2022.??.??"]
[TimeControl "60"]

{[%evp 9,50,14,16,16,18,26,22,0,-6,-9,-7,-24,0,0,-10,-43,45,61,466,328,428,414,
412,413,425,427,796,797,797,798,789,789,789,787,2495,2519,1856,1256,1874,1861,
29991,29992,29999]} 1. e4 {[%emt 0:00:03]} c6 {[%emt 0:00:09]} 2. Nf3 {[%emt 0:
00:00]} d5 {[%emt 0:00:07]} 3. Nc3 {[%emt 0:00:36]} Nf6 {[%emt 0:00:07]} 4. e5
{[%emt 0:00:25]} Ne4 {[%emt 0:00:07]} 5. Ne2 {[%emt 0:00:04]} Qb6 {[%emt 0:00:
00][%csl Ge4][%cal Rb6f2]} 6. d4 {[%emt 0:00:06] B11: Caro-Kann: Two Knights
Variation.} e6 {[%emt 0:00:41]} 7. Ng3 $1 {[%emt 0:00:04] 7.Ng3 scores better
than 7.Nfg1.} c5 {[%emt 0:01:21]} 8. Bd3 {[%emt 0:00:05] The position is equal.
} Nxg3 $1 {[%emt 0:00:51]} 9. fxg3 {[%emt 0:00:10]} Nc6 {[%emt 0:04:26]} 10.
O-O {[%emt 0:06:48] Active counter play!} cxd4 {[%emt 0:02:15]} 11. Qe2 {
[%emt 0:04:39]} h6 {[%emt 0:01:31] Prevents Ng5.} 12. Nh4 {[%emt 0:04:58] [#]
Black must now prevent Qh5.} Qc7 $146 {[%emt 0:06:41]} ({Black should try} 
12... Bd7 $1 $15) ({Predecessor:} 12... Bd7 13. Bd2 g5 14. Nf3 Bg7 15. g4 O-O-O
16. b4 Kb8 17. Kh1 Qc7 {½-½ (17) Zelbel,P (2439)-Illner,A (2474) Belgium 2019
}) 13. Qh5 $1 $14 {[%emt 0:04:51][%cal Yf1f7] Threatens to win with Rxf7!} g6
$2 {[%emt 0:22:43] [#] This costs Black the game.} (13... Nxe5 $2 14. Bf4 Bd6
15. Bxe5 Bxe5 {[#]} 16. Rxf7 $3 $18) (13... Bc5 $14) 14. Bxg6 $1 {[%emt 0:06:
44][%cal Yd3g6,Yg6f7,Yf7e6,Ye6c8]} Qxe5 {[%emt 0:04:17]} (14... fxg6 $2 15.
Nxg6 Kd8 16. Nxh8 $18) (14... Nd8 15. Bd2) 15. Bxf7+ {[%emt 0:00:44]} Kd8 {
[%emt 0:02:12]} 16. Qf3 {[%emt 0:03:43]} Qg7 {[%emt 0:07:04]} 17. Ng6 {[%emt 0:
06:00]} Rh7 {[%emt 0:07:41] [#]} (17... Bd6 $142 18. Nxh8 Qxh8) 18. Bxe6 $1 $18
{[%emt 0:02:57]} Qxg6 {[%emt 0:00:00]} 19. Qxf8+ {[%emt 0:01:07]} Kc7 {[%emt 0:
00:21]} 20. Bf4+ {[%emt 0:00:00]} Kb6 {[%emt 0:00:07]} 21. Bxc8 {[%emt 0:00:20]
This bishop pair is nice.} Ne7 {[%emt 0:03:40]} 22. Qd8+ {[%emt 0:01:10]} Ka6 {
[%emt 0:00:27]} 23. Bd2 {[%emt 0:00:03][%csl Gd2][%cal Rd8a5]} Qb6 {[%emt 0:05:
05] [#] Prevents Qa5+.} 24. Rf6 $3 {[%emt 0:02:11][%cal Yc8f5] Threatening
mate with Bf5!} Nc6 {[%emt 0:00:17] [#]} (24... Rxc8 25. Rxb6+) 25. Rxc6 $1 {
[%emt 0:00:05]} Qxc6 {[%emt 0:00:13]} (25... Rc7 26. Qxc7) 26. Qa5# {[%emt 0:
00:04] Weighted Error Value: White=0.15 (very precise) /Black=0.92} 1-0

[Event "44th Chess Olympiad Women 2022"]
[Site "Chennai"]
[Date "2022.07.30"]
[Round "2.19"]
[White "Efroimski, Marsel"]
[Black "Varela La Madrid, Tilsia Carolina"]
[Result "1-0"]
[WhiteElo "2456"]
[BlackElo "2079"]
[Annotator "TA"]
[PlyCount "69"]
[EventDate "2022.??.??"]
[TimeControl "60"]

{[%evp 16,69,7,18,14,21,20,14,21,6,7,6,7,-15,34,50,39,10,8,12,49,37,32,44,45,
-11,26,-62,35,11,34,26,75,68,68,58,181,70,68,41,42,14,102,106,157,143,241,249,
201,201,5502,5381,29989,29990,29994,29995]} 1. e4 {[%emt 0:00:01]} e5 {[%emt 0:
00:00]} 2. Nf3 {[%emt 0:00:03]} Nc6 {[%emt 0:00:12]} 3. Nc3 {[%emt 0:00:01]}
Nf6 {[%emt 0:00:12]} 4. Bb5 {[%emt 0:00:02]} Bb4 {[%emt 0:01:41]} 5. O-O {
[%emt 0:01:01]} O-O {[%emt 0:01:06]} 6. d3 {[%emt 0:00:02]} d6 {[%emt 0:01:50]}
7. Bg5 {[%emt 0:00:04]} Bxc3 {[%emt 0:00:10]} 8. bxc3 {[%emt 0:00:01]} h6 {
[%emt 0:00:14]} 9. Bh4 {[%emt 0:01:17]} a6 {[%emt 0:00:53] C49: Four Knights:
4 Bb5 Bb4.} 10. Ba4 {[%emt 0:03:27]} Qe7 {[%emt 0:00:23]} 11. Re1 {[%emt 0:00:
00]} Nd8 {[%emt 0:00:12][%cal Yc6d8,Yd8e6,Ye6g5] The position is equal.} 12. d4
{[%emt 0:00:20]} Ne6 {[%emt 0:02:05]} 13. Bg3 {[%emt 0:04:45]} Ng5 {[%emt 0:12:
41]} 14. Nd2 {[%emt 0:01:46]} c5 {[%emt 0:14:35]} (14... b5 $11 15. Bb3 Bb7)
15. Bb3 $1 $14 {[%emt 0:03:06]} b5 {[%emt 0:06:42] [#]} 16. Bd5 $146 {[%emt 0:
01:58]} ({Predecessor:} 16. dxc5 dxc5 17. Bd5 Rb8 18. c4 Bb7 19. Qe2 Rfe8 20.
a4 bxc4 21. h4 Ne6 22. Bxe5 {½-½ (29) Chadaev,N (2591)-Firat,B (2474) Chess.
com INT 2020}) 16... Nxd5 {[%emt 0:04:24]} 17. exd5 {[%emt 0:00:00][%cal Rd4e5]
} f6 {[%emt 0:02:17]} 18. f4 {[%emt 0:12:01]} Nf7 {[%emt 0:00:00]} 19. dxc5 {
[%emt 0:05:51]} dxc5 {[%emt 0:01:09]} 20. Ne4 {[%emt 0:01:01]} (20. c4 $14)
20... Bf5 {[%emt 0:06:21]} (20... f5 $5 {[%cal Rf5e4]} 21. Nd2 e4 $11) 21. d6 {
[%emt 0:02:41]} (21. fxe5 $11 fxe5 22. Qf3) 21... Qa7 {[%emt 0:00:00]} (21...
Qb7 $1 $15 22. Nxc5 Qc6) 22. fxe5 {[%emt 0:01:24] And now e6 would win.} (22.
Qd5 $5 {[%cal Re4f6]}) 22... fxe5 {[%emt 0:01:26]} (22... Bxe4 $5 23. Rxe4 c4+
24. Kh1 Qb7 $14) 23. Qd5 $36 {[%emt 0:00:13][%csl Yc5,Ye5] White is more
active.} Bxe4 {[%emt 0:00:30]} (23... c4+ $11 24. Bf2 Qd7) 24. Rxe4 $16 {
[%emt 0:00:24]} c4+ {[%emt 0:00:47]} 25. Kh1 {[%emt 0:05:15] Threatens to win
with Rxe5. White is much more active.} Kh8 {[%emt 0:00:57]} (25... Rad8 $14 26.
Bxe5 Qa8 27. Qxa8 Rxa8) 26. Bxe5 {[%emt 0:14:22]} (26. Bh4 $1 $18 {[%cal Rh4e7]
}) 26... Nxe5 $14 {[%emt 0:02:20]} 27. Qxe5 {[%emt 0:01:10]} Qf2 {[%emt 0:05:
34][%cal Yf2f1] ( -> ...Qf1+!)} 28. Ree1 {[%emt 0:03:09] Inhibits Qf1+.} (28.
Rg4 $2 {gets mated.} Qf1+ $3 29. Rxf1 Rxf1#) 28... Rf5 {[%emt 0:02:21] [#]} (
28... Rad8 $11) 29. Qe4 $1 $16 {[%emt 0:08:03]} Raf8 {[%emt 0:00:08]} (29...
Rff8 $142) 30. h3 {[%emt 0:00:28] Black must now prevent d7.} Qa7 {[%emt 0:08:
25] [#]} (30... R5f7 $16 31. Qc6 Kh7 32. Qxa6 Qxc2) 31. Rad1 $1 $18 {[%emt 0:
06:40]} Qd7 {[%emt 0:00:38]} 32. Qd4 {[%emt 0:01:16] Hoping for Re7.} Rf3 $2 {
[%emt 0:02:58]} (32... Rf4 33. Qd5 R4f5) 33. Re7 {[%emt 0:01:18][%csl Ge7]
[%cal Rd4g7]} Rxh3+ {[%emt 0:00:56]} 34. Kg1 {[%emt 0:00:00][%csl Ge7][%cal
Rd4g7]} ({Inferior is} 34. gxh3 Qxh3+ 35. Kg1 Qg3+ 36. Kh1 Qh3+ 37. Kg1 Qg3+
38. Kh1 Qh3+ $11) 34... Qg4 {[%emt 0:00:31]} 35. Qxg4 {[%emt 0:00:06] Weighted
Error Value: White=0.18 (very precise) /Black=0.51} 1-0

[Event "44th Chess Olympiad Women 2022"]
[Site "Chennai"]
[Date "2022.07.30"]
[Round "2.20"]
[White "Pipiras, Filipa Fortuna"]
[Black "Bulmaga, Irina"]
[Result "0-1"]
[WhiteElo "2139"]
[BlackElo "2394"]
[Annotator "TA"]
[PlyCount "60"]
[EventDate "2022.??.??"]
[TimeControl "60"]

{[%evp 14,60,0,0,0,0,0,0,0,0,-2,-7,0,0,29,-27,-27,-28,-35,-42,-28,-113,-113,
-113,-113,-122,-138,-241,-252,-254,-229,-253,-237,-364,-376,-486,-433,-463,
-437,-942,-922,-1076,-1062,-1045,-1008,-874,-744,-29998,-29999]} 1. d4 {
[%emt 0:00:08]} Nf6 {[%emt 0:00:08]} 2. c4 {[%emt 0:00:22]} e6 {[%emt 0:00:07]}
3. Nc3 {[%emt 0:00:42]} Bb4 {[%emt 0:00:09]} 4. Qc2 {[%emt 0:00:48]} b6 {
[%emt 0:00:09]} 5. a3 {[%emt 0:05:52]} Bxc3+ {[%emt 0:00:11]} 6. Qxc3 {[%emt 0:
00:00]} Bb7 {[%emt 0:00:13]} 7. Bg5 {[%emt 0:03:54]} h6 {[%emt 0:00:19]} 8. Bh4
{[%emt 0:01:00]} g5 $1 {[%emt 0:00:14] 8...g5 scores better than 8...d6. E32:
Nimzo-Indian: Classical (4 Qc2): 4...0-0.} 9. Bg3 {[%emt 0:00:23]} Ne4 {
[%emt 0:00:10]} 10. Qc2 {[%emt 0:02:21]} d6 {[%emt 0:00:31] The position is
equal.} 11. f3 {[%emt 0:04:02]} Nxg3 {[%emt 0:00:28]} 12. hxg3 {[%emt 0:00:09]}
Nd7 {[%emt 0:02:04]} 13. e4 {[%emt 0:10:26] [#]} c5 $146 {[%emt 0:05:31]} ({
Predecessor:} 13... Qf6 14. O-O-O O-O-O 15. Ne2 Kb8 16. Nc3 h5 17. Kb1 h4 18.
gxh4 Rxh4 19. Rxh4 gxh4 {½-½ (41) Beradze,I (2479)-Mardov,D (2356) Charlotte
2021}) 14. dxc5 {[%emt 0:05:47]} (14. Ne2 $142) 14... dxc5 $11 {[%emt 0:06:04]}
15. O-O-O {[%emt 0:04:02]} Qc7 {[%emt 0:03:40]} 16. Ne2 {[%emt 0:10:07]} O-O-O
{[%emt 0:02:42][%cal Ye8c8,Yc8c7,Yc7b7,Yb7c6]} 17. Nc3 {[%emt 0:22:21]} (17. g4
$11) 17... Qxg3 $17 {[%emt 0:10:46]} 18. Nb5 {[%emt 0:03:47]} a6 {[%emt 0:01:
34]} 19. Nd6+ {[%emt 0:02:20]} Kc7 {[%emt 0:00:18] White must now prevent ...
Bc6.} 20. Kb1 {[%emt 0:03:02]} (20. Rh3 $17 Qf4+ 21. Qd2 Qxd2+ 22. Rxd2) 20...
Ne5 $19 {[%emt 0:04:03]} 21. Rh3 {[%emt 0:04:33]} Qf4 {[%emt 0:00:00]} 22. Nxb7
{[%emt 0:01:26]} Kxb7 {[%emt 0:00:21]} ({Not} 22... Rxd1+ 23. Qxd1 Kxb7 24. Qd6
$17) 23. Rxd8 {[%emt 0:04:23]} (23. Qc1 {might work better.}) 23... Rxd8 {
[%emt 0:00:00]} 24. Rxh6 {[%emt 0:00:12]} Rd2 {[%emt 0:02:05]} 25. Qc1 {
[%emt 0:00:38]} Qe3 {[%emt 0:01:26]} 26. Rh7 {[%emt 0:05:21]} (26. Rh1 $142)
26... Nd3 {[%emt 0:02:29]} 27. Rxf7+ {[%emt 0:01:45]} Kc6 {[%emt 0:00:12]} 28.
Bxd3 {[%emt 0:00:20]} Qxd3+ {[%emt 0:00:07]} 29. Ka2 {[%emt 0:00:10]} Rd1 {
[%emt 0:00:30]} 30. Qxg5 {[%emt 0:01:35]} Qxc4+ {[%emt 0:00:12] Weighted Error
Value: White=0.77/Black=0.07 (flawless)} 0-1